{"text_format":"1","workbook":"xlsx","n_sheets":3,"sheets":["OfficerApplication","Addl Seatime","Data"],"not_rendered":{"charts":0,"images":2,"macros":1,"external_links":0,"defined_names":31,"comments":0,"pivot_tables":0},"unopened":[],"bounds":{"document_bytes":16777216,"sheet_cells":100000,"rows_first":2000,"rows_last":500,"rows_between":2000,"halvings":0,"cell_chars":16384,"cell_head_chars":4096},"cells_cut":0,"cells_raw":0,"read":"whole","date_system":"1900"}

{"sheet":"OfficerApplication","index":0,"n_rows":241,"n_cols":16,"rows_kept":241,"cut":false,"hidden":false,"merged":[[223,11,224,15],[143,6,143,9],[138,11,139,11],[138,5,139,6],[223,1,223,9],[227,1,227,15],[226,1,226,15],[224,1,224,9],[130,15,131,15],[130,1,131,1],[136,3,137,4],[132,9,133,9],[136,5,137,6],[136,9,137,9],[134,14,135,14],[136,11,137,11],[138,7,139,8],[132,5,133,6],[138,14,139,14],[134,1,135,1],[118,15,119,15],[120,15,121,15],[122,15,123,15],[128,13,129,13],[134,3,135,4],[134,13,135,13],[136,14,137,14],[134,12,135,12],[130,12,131,12],[132,7,133,8],[124,13,125,13],[128,15,129,15],[126,15,127,15],[146,6,146,9],[138,9,139,9],[128,14,129,14],[130,14,131,14],[194,11,195,15],[130,13,131,13],[132,13,133,13],[150,4,150,7],[152,4,152,7],[142,6,142,9],[124,1,125,1],[126,3,127,4],[126,5,127,6],[128,1,129,1],[126,1,127,1],[138,1,139,1],[108,11,109,11],[118,12,119,12],[106,10,107,10],[106,9,107,9],[126,12,127,12],[132,12,133,12],[132,11,133,11],[114,9,115,9],[108,9,109,9],[106,1,107,1],[108,1,109,1],[106,2,107,2],[106,3,107,4],[128,5,129,6],[130,11,131,11],[108,5,109,6],[128,12,129,12],[134,2,135,2],[236,10,236,15],[220,1,220,9],[220,11,221,15],[217,1,217,9],[118,14,119,14],[120,14,121,14],[118,13,119,13],[122,14,123,14],[147,6,147,9],[130,2,131,2],[167,1,168,15],[173,4,173,12],[164,13,164,15],[132,14,133,14],[132,15,133,15],[134,15,135,15],[138,12,139,12],[136,12,137,12],[141,14,141,15],[136,15,137,15],[143,14,143,15],[145,14,145,15],[142,11,142,12],[146,11,146,12],[110,1,111,1],[110,2,111,2],[116,1,117,1],[118,1,119,1],[110,3,111,4],[116,9,117,9],[118,5,119,6],[118,2,119,2],[118,3,119,4],[116,3,117,4],[116,5,117,6],[92,6,92,9],[92,10,92,12],[108,12,109,12],[120,7,121,8],[120,9,121,9],[122,13,123,13],[120,3,121,4],[120,5,121,6],[118,9,119,9],[122,12,123,12],[110,13,111,13],[112,13,113,13],[112,11,113,11],[118,11,119,11],[116,11,117,11],[110,12,111,12],[122,7,123,8],[114,11,115,11],[240,1,240,7],[194,1,194,9],[191,1,192,15],[228,1,228,15],[230,2,230,4],[229,11,230,13],[200,11,201,15],[203,11,204,15],[210,1,210,9],[218,1,218,9],[234,8,234,9],[237,8,237,9],[235,8,235,9],[198,1,198,9],[201,1,201,9],[212,10,214,10],[215,1,215,9],[212,11,215,15],[212,1,214,9],[207,1,207,9],[209,1,209,9],[231,2,231,4],[206,11,207,15],[197,11,198,15],[83,1,83,4],[83,11,83,15],[83,5,83,8],[75,3,76,15],[73,3,73,7],[73,1,73,2],[79,11,79,15],[79,5,79,8],[80,5,80,8],[81,5,81,8],[80,1,80,4],[81,11,81,15],[81,1,81,4],[82,1,82,4],[82,11,82,15],[82,5,82,8],[73,11,73,15],[75,1,75,2],[80,11,80,15],[78,1,78,2],[79,1,79,4],[65,3,65,8],[56,14,56,15],[50,13,50,15],[54,4,54,7],[51,9,51,10],[51,5,51,8],[56,8,56,10],[51,1,51,4],[55,11,55,12],[63,3,63,7],[56,11,56,12],[54,1,54,3],[55,1,55,3],[55,8,55,10],[50,5,50,8],[54,8,54,10],[51,11,51,12],[63,11,63,13],[60,3,61,15],[57,1,57,3],[26,8,26,9],[26,3,26,5],[44,3,44,8],[43,3,43,8],[28,10,28,13],[48,9,48,10],[48,11,48,12],[44,1,44,2],[44,9,44,10],[47,3,47,8],[47,9,47,10],[28,1,28,2],[27,1,27,2],[35,3,35,5],[35,6,35,8],[34,3,34,5],[35,1,35,2],[30,7,30,9],[40,8,40,15],[41,8,41,15],[40,1,40,7],[43,11,43,12],[50,9,50,10],[50,11,50,12],[57,8,57,10],[57,11,57,12],[54,11,54,12],[30,1,30,2],[43,1,43,2],[34,6,34,8],[48,1,48,2],[38,3,38,5],[38,6,38,8],[38,9,38,10],[36,3,36,5],[36,11,36,15],[36,9,36,10],[36,6,36,8],[57,14,57,15],[48,3,48,8],[47,1,47,2],[67,3,67,7],[7,1,7,5],[41,1,41,7],[35,11,35,15],[38,1,38,2],[36,1,36,2],[15,6,15,11],[26,10,26,13],[31,12,31,15],[47,14,47,15],[48,14,48,15],[28,14,28,15],[54,14,54,15],[55,14,55,15],[26,1,26,2],[28,3,28,5],[28,6,28,7],[28,8,28,9],[30,3,30,6],[32,1,32,2],[32,7,32,9],[34,1,34,2],[31,1,31,2],[7,13,19,15],[233,8,233,9],[188,7,188,9],[164,9,164,10],[136,13,137,13],[138,13,139,13],[120,13,121,13],[197,1,197,9],[138,15,139,15],[124,15,125,15],[124,14,125,14],[120,2,121,2],[180,13,180,15],[180,4,180,9],[177,4,178,15],[120,1,121,1],[122,1,123,1],[122,2,123,2],[122,3,123,4],[122,5,123,6],[128,2,129,2],[128,3,129,4],[124,7,125,8],[164,7,164,8],[161,4,162,15],[238,10,238,15],[236,8,236,9],[200,1,200,9],[206,1,206,9],[203,1,203,9],[195,1,195,9],[150,11,150,13],[152,11,152,13],[238,8,238,9],[233,1,233,7],[234,1,234,7],[235,1,235,7],[236,1,236,7],[237,1,237,7],[238,1,238,7],[204,1,204,9],[209,11,210,15],[217,11,218,15],[235,10,235,15],[234,10,234,15],[221,1,221,9],[237,10,237,15],[185,1,185,9],[233,10,233,15],[84,11,84,15],[84,5,84,8],[84,1,84,4],[124,5,125,6],[130,3,131,4],[189,7,189,9],[187,1,187,6],[188,1,188,6],[164,4,164,6],[132,1,133,1],[132,2,133,2],[132,3,133,4],[136,1,137,1],[136,2,137,2],[189,1,189,6],[134,5,135,6],[184,1,184,9],[154,4,155,15],[159,4,159,12],[187,7,187,9],[136,7,137,8],[91,6,91,9],[91,10,91,12],[92,1,92,5],[95,1,95,5],[95,6,95,9],[108,7,109,8],[108,2,109,2],[13,6,13,11],[43,14,43,15],[38,11,38,15],[50,1,50,4],[44,14,44,15],[87,6,87,9],[98,10,98,12],[56,1,56,3],[94,1,94,5],[94,6,94,9],[71,3,71,5],[88,1,88,5],[88,6,88,9],[69,3,69,7],[55,4,55,7],[56,4,56,7],[57,4,57,7],[93,6,93,9],[93,10,93,12],[89,1,89,5],[9,6,9,8],[10,6,10,8],[9,10,9,11],[10,10,10,11],[27,10,27,13],[23,6,23,10],[22,9,22,10],[24,2,24,4],[43,9,43,10],[35,9,35,10],[34,9,34,10],[27,3,27,5],[27,6,27,7],[27,8,27,9],[31,3,31,6],[32,3,32,6],[31,7,31,9],[19,6,19,7],[19,2,19,4],[31,10,31,11],[26,6,26,7],[30,10,30,11],[32,10,32,11],[23,2,23,4],[7,6,7,11],[18,2,18,4],[21,2,21,4],[21,9,21,10],[18,9,18,11],[19,9,19,11],[18,6,18,7],[138,2,139,2],[175,4,175,10],[134,7,135,8],[134,9,135,9],[134,11,135,11],[122,9,123,9],[122,11,123,11],[124,9,125,9],[138,3,139,4],[128,7,129,8],[144,6,144,9],[126,7,127,8],[126,9,127,9],[144,1,144,4],[130,5,131,6],[130,7,131,8],[130,9,131,9],[87,10,87,12],[95,10,95,12],[91,1,91,5],[87,14,87,15],[110,9,111,9],[110,11,111,11],[106,11,106,15],[110,15,111,15],[108,13,109,13],[108,15,109,15],[108,14,109,14],[110,14,111,14],[96,10,96,12],[90,10,90,12],[94,10,94,12],[97,6,97,9],[106,7,107,8],[88,14,88,15],[89,14,89,15],[90,14,90,15],[102,1,102,5],[98,1,98,5],[101,6,101,9],[101,1,101,5],[88,10,88,12],[110,5,111,6],[93,1,93,5],[108,3,109,4],[5,13,5,15],[5,11,5,12],[67,11,67,15],[69,11,69,15],[47,11,47,12],[11,6,11,11],[34,11,34,15],[32,12,32,15],[30,12,30,15],[44,11,44,12],[16,6,16,11],[26,14,26,15],[27,14,27,15],[23,13,23,14],[24,6,24,10],[5,1,5,10],[24,13,25,15],[71,1,71,2],[87,1,87,5],[97,10,97,12],[89,6,89,9],[89,10,89,12],[90,1,90,5],[90,6,90,9],[102,10,102,12],[102,6,102,9],[106,5,107,6],[95,14,95,15],[96,14,96,15],[97,14,97,15],[98,14,98,15],[99,6,99,9],[99,10,99,12],[101,10,101,12],[96,1,96,5],[98,6,98,9],[97,1,97,5],[94,14,94,15],[99,1,99,5],[102,14,102,15],[91,14,91,15],[92,14,92,15],[93,14,93,15],[96,6,96,9],[126,14,127,14],[112,9,113,9],[114,1,115,1],[114,2,115,2],[114,3,115,4],[114,5,115,6],[114,7,115,8],[112,1,113,1],[112,2,113,2],[112,3,113,4],[112,5,113,6],[112,7,113,8],[116,2,117,2],[120,11,121,11],[120,12,121,12],[118,7,119,8],[116,7,117,8],[124,11,125,11],[126,13,127,13],[124,12,125,12],[124,2,125,2],[124,3,125,4],[126,2,127,2],[126,11,127,11],[128,9,129,9],[128,11,129,11],[110,7,111,8],[37,1,37,2],[37,3,37,5],[37,6,37,8],[37,9,37,10],[37,11,37,15],[1,2,3,15],[51,13,51,15],[116,12,117,12],[116,13,117,13],[116,14,117,14],[116,15,117,15],[114,12,115,12],[114,13,115,13],[114,14,115,14],[114,15,115,15],[112,12,113,12],[112,14,113,14],[112,15,113,15],[99,14,99,15],[100,14,100,15],[101,14,101,15]]}
[]
[null,null,"MAERSK TANKERS"]
[]
[]
[]
[null,"              Officer Application Form ",null,null,null,null,null,null,null,null,null,"Ref. No\n(for official use)",null,{"$f":"+IF(AND(C19<>\"\",G12<>\"\"),J19 & \", \" &C19 & \"(\" &G12& \")\", \"\")","v":""}]
[]
[null,"Please fill and send to",null,null,null,null,{"$f":"IF(G10=\"Other\", \" recruitment@maersktankers.com\", OFFSET(CountryStart,MATCH(G10,CountryColumn,0)-1,2))","v":" recruitment@maersktankers.com"}]
[]
[null,"LOCATION YOU ARE APPLYING FROM:",null,null,null,null,"Other"]
[null,null,null,null,null,null,"Country",null,null,null,"(please specify if other)"]
[null,"APPLICATION FOR POSITION AS",null,null,null,null,"Master"]
[]
[null,"APPLICATION FOR VESSEL TYPE  ",null,null,null,null,"Prod/Chem"]
[]
[null,"AVAILABILITY DATE :"]
[null,null,null,null,null,null,"dd-mmm-yyyy"]
[]
[null,"Name: "]
[null,null,"first name",null,null,null,"middle initials",null,null,"last name / surname"]
[]
[null,"Nationality: ",null,null,null,null,"Date of Birth:",null,null,null,null,"Age: ",{"$f":"IF(J22<>\"\", (NOW()-J22)/365.2422,\"\")","v":""}]
[null,null,null,null,null,null,null,null,null,"dd-mmm-yyyy"]
[null,"Place of Birth:",null,null,null,null,null,null,null,null,null,"Sex: ",null,{"$f":"+IF(OR(G10=\"\", G10=\"India\"), \"INDOS No:\",\"\")","v":""}]
[null,null,"city",null,null,null,"country",null,null,null,null,null,null,{"$f":"+IF(OR(G10=\"\", G10=\"India\"), \"only applicable for Indian Seafarers\",\"\")","v":""}]
[null,"Passport          (If Chinese Seafarer, please include details of Seafarer's Passport also)"]
[null,"Number",null,"Place of Issue",null,null,"Date of Issue\n(dd-mmm-yyyy)",null,"Date of Expiry\n(dd-mmm-yyyy)",null,"Issuing Authority",null,null,null,"No. of Blank Pages"]
[]
[]
[null,"Seaman’s Book (CDC)"]
[null,"Number",null,"Place of Issue",null,null,null,"Date of Issue\n(dd-mmm-yyyy)",null,null,"Date of Expiry\n(dd-mmm-yyyy)",null,"Issuing Authority"]
[]
[]
[null,"VISA"]
[null,"Country / Type",null,"Place of Issue",null,null,"Date of Issue\n(dd-mmm-yyyy)",null,null,"Date of Expiry\n(dd-mmm-yyyy)",null,"Remarks"]
[null,"US Visa - C1"]
[null,"US Visa - D"]
[null,"Schengen Visa"]
[null,"Singapore Visa"]
[null,"Yellow Fever Vaccination"]
[null,"Date of Innoculation (dd-mmm-yyyy)",null,null,null,null,null,null,"Date of Expiry (dd-mmm-yyyy)"]
[]
[null,"Certificate of Competency (COC)"]
[null,"Grade",null,"Issuing Authority",null,null,null,null,null,"Number",null,"Date of Issue\n(dd-mmm-yyyy)",null,"Date of Expiry\n(dd-mmm-yyyy)","Place of Issue"]
[]
[]
[null,"Certificate of Endorsement (COE)"]
[null,"Grade",null,"Issuing Authority",null,null,null,null,null,"Number",null,"Date of Issue\n(dd-mmm-yyyy)",null,"Date of Expiry\n(dd-mmm-yyyy)","Place of Issue"]
[]
[null,"GMDSS"]
[null,"Issuing Authority",null,null,null,"Number",null,null,null,"Date of Issue\n(dd-mmm-yyyy)",null,"Date of Expiry\n(dd-mmm-yyyy)",null,"Place of Issue"]
[]
[]
[null,"Dangerous Cargo Endorsements (DCE)"]
[null,"Type of Endorsement",null,null,"Grade / Level ",null,null,null,"Issuing Authority",null,null,"Number",null,"Date of Issue\n(dd-mmm-yyyy)","Date of Expiry\n(dd-mmm-yyyy)"]
[null,"Chemical"]
[null,"Oil"]
[null,"Gas"]
[]
[]
[null,"Full address :"]
[]
[]
[null,"Country :",null,null,null,null,null,null,null,null,"Postal Code :"]
[]
[null,"E-mail id :"]
[]
[null,"Home telephone no :",null,null,null,null,null,null,null,null,"Contact/Mobile phone :"]
[]
[null,"Domestic Airport :",null,null,null,null,null,null,null,null,"International Airport :"]
[]
[null,"Marital Status :"]
[]
[null,"Full Name of Next of Kin :",null,null,null,null,null,null,null,null,"Relationship:"]
[]
[null,"Address of Next of Kin :"]
[]
[]
[null,"Dependents "]
[null,"Name",null,null,null,"Date of Birth \n(dd-mmm-yyyy)",null,null,null,"Age","Gender","Relationship"]
[null,null,null,null,null,null,null,null,null,{"$f":"IF(F81<>\"\", (NOW()-F81)/365.2422,\"\")","v":""}]
[null,null,null,null,null,null,null,null,null,{"$f":"IF(F82<>\"\", (NOW()-F82)/365.2422,\"\")","v":""}]
[null,null,null,null,null,null,null,null,null,{"$f":"IF(F83<>\"\", (NOW()-F83)/365.2422,\"\")","v":""}]
[null,null,null,null,null,null,null,null,null,{"$f":"IF(F84<>\"\", (NOW()-F84)/365.2422,\"\")","v":""}]
[null,null,null,null,null,null,null,null,null,{"$f":"IF(F85<>\"\", (NOW()-F85)/365.2422,\"\")","v":""}]
[]
[null,"Details of other marine courses / STCW short course certificate"]
[null,"Name of Marine Course",null,null,null,null,"Place of Issue",null,null,null,"Number",null,null,"Date of Issue\n(dd-mmm-yyyy)","Date of Expiry\n(dd-mmm-yyyy) "]
[]
[]
[]
[]
[]
[]
[]
[]
[]
[]
[]
[]
[]
[]
[]
[]
[]
[null,"Employment History (Pls Start With Your Latest Sailing Experience On Top Row )"]
[null,"Company","Name of Vessel","From\n(dd-mmm-yyyy)",null,"To\n(dd-mmm-yyyy)",null,"Total MM-DD",null,"Voyage Type (Foreign Going / Coastal)","Rank","Type of Vessel\n\nPlease complete all fields"]
[null,null,null,null,null,null,null,null,null,null,null,"Vessel Type","GRT","BHP","UMS","Main Engine"]
[null,null,null,null,null,null,null,{"$f":"IF(OR(F109=\"\", D109=\"\"), \"\", ROUNDDOWN(12*(F109-D109)/365.242199,0)&\" - \"&ROUND((12*(F109-D109)/365.242199-ROUNDDOWN(12*(F109-D109)/365.242199,0))*(365.242199/12),0))","v":""}]
[]
[null,null,null,null,null,null,null,{"$f":"IF(OR(F111=\"\", D111=\"\"), \"\", ROUNDDOWN(12*(F111-D111)/365.242199,0)&\" - \"&ROUND((12*(F111-D111)/365.242199-ROUNDDOWN(12*(F111-D111)/365.242199,0))*(365.242199/12),0))","v":""}]
[]
[null,null,null,null,null,null,null,{"$f":"IF(OR(F113=\"\", D113=\"\"), \"\", ROUNDDOWN(12*(F113-D113)/365.242199,0)&\" - \"&ROUND((12*(F113-D113)/365.242199-ROUNDDOWN(12*(F113-D113)/365.242199,0))*(365.242199/12),0))","v":""}]
[]
[null,null,null,null,null,null,null,{"$f":"IF(OR(F115=\"\", D115=\"\"), \"\", ROUNDDOWN(12*(F115-D115)/365.242199,0)&\" - \"&ROUND((12*(F115-D115)/365.242199-ROUNDDOWN(12*(F115-D115)/365.242199,0))*(365.242199/12),0))","v":""}]
[]
[null,null,null,null,null,null,null,{"$f":"IF(OR(F117=\"\", D117=\"\"), \"\", ROUNDDOWN(12*(F117-D117)/365.242199,0)&\" - \"&ROUND((12*(F117-D117)/365.242199-ROUNDDOWN(12*(F117-D117)/365.242199,0))*(365.242199/12),0))","v":""}]
[]
[null,null,null,null,null,null,null,{"$f":"IF(OR(F119=\"\", D119=\"\"), \"\", ROUNDDOWN(12*(F119-D119)/365.242199,0)&\" - \"&ROUND((12*(F119-D119)/365.242199-ROUNDDOWN(12*(F119-D119)/365.242199,0))*(365.242199/12),0))","v":""}]
[]
[null,null,null,null,null,null,null,{"$f":"IF(OR(F121=\"\", D121=\"\"), \"\", ROUNDDOWN(12*(F121-D121)/365.242199,0)&\" - \"&ROUND((12*(F121-D121)/365.242199-ROUNDDOWN(12*(F121-D121)/365.242199,0))*(365.242199/12),0))","v":""}]
[]
[null,null,null,null,null,null,null,{"$f":"IF(OR(F123=\"\", D123=\"\"), \"\", ROUNDDOWN(12*(F123-D123)/365.242199,0)&\" - \"&ROUND((12*(F123-D123)/365.242199-ROUNDDOWN(12*(F123-D123)/365.242199,0))*(365.242199/12),0))","v":""}]
[]
[null,null,null,null,null,null,null,{"$f":"IF(OR(F125=\"\", D125=\"\"), \"\", ROUNDDOWN(12*(F125-D125)/365.242199,0)&\" - \"&ROUND((12*(F125-D125)/365.242199-ROUNDDOWN(12*(F125-D125)/365.242199,0))*(365.242199/12),0))","v":""}]
[]
[null,null,null,null,null,null,null,{"$f":"IF(OR(F127=\"\", D127=\"\"), \"\", ROUNDDOWN(12*(F127-D127)/365.242199,0)&\" - \"&ROUND((12*(F127-D127)/365.242199-ROUNDDOWN(12*(F127-D127)/365.242199,0))*(365.242199/12),0))","v":""}]
[]
[null,null,null,null,null,null,null,{"$f":"IF(OR(F129=\"\", D129=\"\"), \"\", ROUNDDOWN(12*(F129-D129)/365.242199,0)&\" - \"&ROUND((12*(F129-D129)/365.242199-ROUNDDOWN(12*(F129-D129)/365.242199,0))*(365.242199/12),0))","v":""}]
[]
[null,null,null,null,null,null,null,{"$f":"IF(OR(F131=\"\", D131=\"\"), \"\", ROUNDDOWN(12*(F131-D131)/365.242199,0)&\" - \"&ROUND((12*(F131-D131)/365.242199-ROUNDDOWN(12*(F131-D131)/365.242199,0))*(365.242199/12),0))","v":""}]
[]
[null,null,null,null,null,null,null,{"$f":"IF(OR(F133=\"\", D133=\"\"), \"\", ROUNDDOWN(12*(F133-D133)/365.242199,0)&\" - \"&ROUND((12*(F133-D133)/365.242199-ROUNDDOWN(12*(F133-D133)/365.242199,0))*(365.242199/12),0))","v":""}]
[]
[null,null,null,null,null,null,null,{"$f":"IF(OR(F135=\"\", D135=\"\"), \"\", ROUNDDOWN(12*(F135-D135)/365.242199,0)&\" - \"&ROUND((12*(F135-D135)/365.242199-ROUNDDOWN(12*(F135-D135)/365.242199,0))*(365.242199/12),0))","v":""}]
[]
[null,null,null,null,null,null,null,{"$f":"IF(OR(F137=\"\", D137=\"\"), \"\", ROUNDDOWN(12*(F137-D137)/365.242199,0)&\" - \"&ROUND((12*(F137-D137)/365.242199-ROUNDDOWN(12*(F137-D137)/365.242199,0))*(365.242199/12),0))","v":""}]
[]
[null,null,null,null,null,null,null,{"$f":"IF(OR(F139=\"\", D139=\"\"), \"\", ROUNDDOWN(12*(F139-D139)/365.242199,0)&\" - \"&ROUND((12*(F139-D139)/365.242199-ROUNDDOWN(12*(F139-D139)/365.242199,0))*(365.242199/12),0))","v":""}]
[]
[]
[null,"In Case You Have More Sea Experience Pls Utilise The Additional Seatime Sheet ",null,null,null,null,null,null,null,null,null,"Years in Rank On This Type of Tanker  :"]
[null,"Date when promoted to Current Rank :",null,null,null,null,null,null,null,null,null,null,null,null,"(YY-MM) format"]
[null,null,null,null,null,null,"in dd-mmm-yyyy format",null,null,null,null,"Total Years on all type of Tankers        :"]
[null,"Last Wages Drawn :",null,null,null,null,null,null,null,null,null,null,null,null,"(YY-MM) format"]
[null,"(in USD / month)",null,null,null,null,null,null,null,null,null,"Years as Watch officer                          :"]
[null,"Years in Rank",null,null,null,null,null,null,null,null,null,"(for Junior Officer)",null,null,"(YY-MM) format"]
[null,null,null,null,null,null,"(YY-MM) format"]
[null,"Other Personal Details"]
[]
[null,"Height (in cms) :",null,null,null,null,null,null,null,"Weight (in kgs) :"]
[]
[null,"Colour of Eyes :",null,null,null,null,null,null,null,"Color of Hair:"]
[]
[null,"Distinguishing Marks :"]
[]
[]
[null,"Bank Details"]
[]
[null,"Bank’s Name:"]
[]
[null,"Bank’s Address:"]
[]
[]
[null,"A/C Number:",null,null,null,null,null,"  Type :    ",null,null,null,"         Bank Swift Code:"]
[]
[null,"Intermediary Bank Details (If Applicable):"]
[]
[]
[null,"* Please be informed that the bank account provided must be in your name as shown in your passport."]
[]
[null,"Person to Contact In Case Of Emergency or Accident"]
[]
[null,"Name:"]
[]
[null,"Relationship with Person :"]
[]
[null,"Address:"]
[]
[]
[null,"Residential Telephone:",null,null,null,null,null,null,null,null,null,"Mobile Telephone:"]
[]
[null,"Medical History"]
[]
[null,"Have you ever signed off from a ship due to Medical reasons?"]
[null,"(If Yes give details)",null,null,null,null,null,null,null,null,"* Yes / No"]
[]
[null,"Name of Vessel",null,null,null,null,null,"Date of Occurrence\n(dd-mmm-yyyy)"]
[]
[]
[null,"Brief Description of Illness / Injury / Accident"]
[]
[]
[null,null,null,null,null,null,null,null,null,null,null,"Details"]
[null,"Have you ever suffered or are suffering from any ailment or disease that is likely to render you unfit for sea service or likely to endanger the health/well being of others onboard?"]
[null,"(If Yes give details)",null,null,null,null,null,null,null,null,"* Yes / No"]
[null,null,null,null,null,null,null,null,null,null,null,"Details"]
[null,"Do you have any bodily defects or deficiencies?"]
[null,"(If Yes give details)",null,null,null,null,null,null,null,null,"* Yes / No"]
[null,null,null,null,null,null,null,null,null,null,null,"Details"]
[null,"Are you suffering from an ailment that requires you to be on a long-term treatment/medication?"]
[null,"(If Yes give details)",null,null,null,null,null,null,null,null,"* Yes / No"]
[null,null,null,null,null,null,null,null,null,null,null,"Details"]
[null,"Are you addicted to alcohol or drugs of any kind?"]
[null,"(If Yes give details)",null,null,null,null,null,null,null,null,"* Yes / No"]
[null,null,null,null,null,null,null,null,null,null,null,"Details"]
[null,"Are you a member of any religious or political group?"]
[null,"(If Yes give details)",null,null,null,null,null,null,null,null,"* Yes / No"]
[null,null,null,null,null,null,null,null,null,null,null,"Details"]
[null,"Have you ever been deported ,denied visa or banned from entering any country?"]
[null,"(If Yes give details)",null,null,null,null,null,null,null,null,"* Yes / No"]
[null,null,null,null,null,null,null,null,null,null,null,"Details"]
[null,"Police record if any  or  Restriction on Entering any country or  Pending legal cases in any country"]
[]
[]
[null,"(If Yes give details)",null,null,null,null,null,null,null,null,"* Yes / No"]
[null,null,null,null,null,null,null,null,null,null,null,"Details"]
[null,"Have you ever been convicted of a criminal or drug offence or have any pending offences?"]
[null,"(If Yes give details)",null,null,null,null,null,null,null,null,"* Yes / No"]
[null,null,null,null,null,null,null,null,null,null,null,"Details"]
[null,"Do you have any obligations towards your current / previous employers ?"]
[null,"(If Yes give details)",null,null,null,null,null,null,null,null,"* Yes / No"]
[null,null,null,null,null,null,null,null,null,null,null,"Details"]
[null,"Do we have consent to speak to your previous employers?"]
[null,"(If NO give details)",null,null,null,null,null,null,null,null,"* Yes / No"]
[]
[null,"The data you have submitted to us remains confidential with us and will be used for recruitment with Maersk Tankers only."]
[null,"    Yes, I have read the above Statement and I accept it . I also accept that my personal data is shared with the responsible recruiter and hiring manager of the Maersk Tankers only.\n"]
[null,"I hereby affirm that all the information provided by me in this application is true and correct to the best of my knowledge and belief; further, that no Certificate of competency or License issued to me has ever been Revoked or Suspended. I also certify that my medical history contained above is true and any false statement or undisclosed Material information about past illness or injury will disqualify me from any employment benefits and claims."]
[]
[null,"Date",null,null,null,null,null,null,null,"Signature"]
[null,null,"dd-mmm-yyyy format"]
[null,"Kindly let us know where did you find out about our recruitment exercise "]
[null,null,null,null,null,null,null,null,"Please Check",null,"Specify Details"]
[null,"Newspaper"]
[null,"Flyers "]
[null,"Friends / Family members already in this organization"]
[null,"Internet"]
[null,"Others: Please specify"]
[]
[null,"Please fill and send to ",null,null,null,null,null,null,{"$f":"+G8","v":" recruitment@maersktankers.com"}]

{"sheet":"Addl Seatime","index":1,"n_rows":46,"n_cols":16,"rows_kept":46,"cut":false,"hidden":false,"merged":[[45,14,46,14],[45,15,46,15],[45,1,46,1],[45,2,46,2],[45,3,46,4],[45,5,46,6],[45,7,46,8],[45,9,46,9],[45,11,46,11],[45,12,46,12],[45,13,46,13],[41,14,42,14],[41,15,42,15],[43,1,44,1],[43,2,44,2],[43,3,44,4],[43,5,44,6],[43,7,44,8],[43,9,44,9],[43,11,44,11],[43,12,44,12],[43,13,44,13],[43,14,44,14],[43,15,44,15],[41,1,42,1],[41,2,42,2],[41,3,42,4],[41,5,42,6],[41,7,42,8],[41,9,42,9],[41,11,42,11],[41,12,42,12],[41,13,42,13],[37,14,38,14],[37,15,38,15],[39,1,40,1],[39,2,40,2],[39,3,40,4],[39,5,40,6],[39,7,40,8],[39,9,40,9],[39,11,40,11],[39,12,40,12],[39,13,40,13],[39,14,40,14],[39,15,40,15],[37,1,38,1],[37,2,38,2],[37,3,38,4],[37,5,38,6],[37,7,38,8],[37,9,38,9],[37,11,38,11],[37,12,38,12],[37,13,38,13],[33,14,34,14],[33,15,34,15],[35,1,36,1],[35,2,36,2],[35,3,36,4],[35,5,36,6],[35,7,36,8],[35,9,36,9],[35,11,36,11],[35,12,36,12],[35,13,36,13],[35,14,36,14],[35,15,36,15],[33,1,34,1],[33,2,34,2],[33,3,34,4],[33,5,34,6],[33,7,34,8],[33,9,34,9],[33,11,34,11],[33,12,34,12],[33,13,34,13],[29,14,30,14],[29,15,30,15],[31,1,32,1],[31,2,32,2],[31,3,32,4],[31,5,32,6],[31,7,32,8],[31,9,32,9],[31,11,32,11],[31,12,32,12],[31,13,32,13],[31,14,32,14],[31,15,32,15],[29,1,30,1],[29,2,30,2],[29,3,30,4],[29,5,30,6],[29,7,30,8],[29,9,30,9],[29,11,30,11],[29,12,30,12],[29,13,30,13],[25,14,26,14],[25,15,26,15],[27,1,28,1],[27,2,28,2],[27,3,28,4],[27,5,28,6],[27,7,28,8],[27,9,28,9],[27,11,28,11],[27,12,28,12],[27,13,28,13],[27,14,28,14],[27,15,28,15],[25,1,26,1],[25,2,26,2],[25,3,26,4],[25,5,26,6],[25,7,26,8],[25,9,26,9],[25,11,26,11],[25,12,26,12],[25,13,26,13],[21,14,22,14],[21,15,22,15],[23,1,24,1],[23,2,24,2],[23,3,24,4],[23,5,24,6],[23,7,24,8],[23,9,24,9],[23,11,24,11],[23,12,24,12],[23,13,24,13],[23,14,24,14],[23,15,24,15],[21,1,22,1],[21,2,22,2],[21,3,22,4],[21,5,22,6],[21,7,22,8],[21,9,22,9],[21,11,22,11],[21,12,22,12],[21,13,22,13],[17,14,18,14],[17,15,18,15],[19,1,20,1],[19,2,20,2],[19,3,20,4],[19,5,20,6],[19,7,20,8],[19,9,20,9],[19,11,20,11],[19,12,20,12],[19,13,20,13],[19,14,20,14],[19,15,20,15],[17,1,18,1],[17,2,18,2],[17,3,18,4],[17,5,18,6],[17,7,18,8],[17,9,18,9],[17,11,18,11],[17,12,18,12],[17,13,18,13],[13,14,14,14],[13,15,14,15],[15,1,16,1],[15,2,16,2],[15,3,16,4],[15,5,16,6],[15,7,16,8],[15,9,16,9],[15,11,16,11],[15,12,16,12],[15,13,16,13],[15,14,16,14],[15,15,16,15],[13,1,14,1],[13,2,14,2],[13,3,14,4],[13,5,14,6],[13,7,14,8],[13,9,14,9],[13,11,14,11],[13,12,14,12],[13,13,14,13],[9,14,10,14],[9,15,10,15],[11,1,12,1],[11,2,12,2],[11,3,12,4],[11,5,12,6],[11,7,12,8],[11,9,12,9],[11,11,12,11],[11,12,12,12],[11,13,12,13],[11,14,12,14],[11,15,12,15],[9,1,10,1],[9,2,10,2],[9,3,10,4],[9,5,10,6],[9,7,10,8],[9,9,10,9],[9,11,10,11],[9,12,10,12],[9,13,10,13],[5,14,6,14],[5,15,6,15],[7,1,8,1],[7,2,8,2],[7,3,8,4],[7,5,8,6],[7,7,8,8],[7,9,8,9],[7,11,8,11],[7,12,8,12],[7,13,8,13],[7,14,8,14],[7,15,8,15],[5,1,6,1],[5,2,6,2],[5,3,6,4],[5,5,6,6],[5,7,6,8],[5,9,6,9],[5,11,6,11],[5,12,6,12],[5,13,6,13],[1,1,2,1],[1,2,2,2],[1,3,2,4],[1,5,2,6],[1,7,2,8],[1,9,2,9],[1,10,2,10],[1,11,1,15],[3,1,4,1],[3,2,4,2],[3,3,4,4],[3,5,4,6],[3,7,4,8],[3,9,4,9],[3,11,4,11],[3,12,4,12],[3,13,4,13],[3,14,4,14],[3,15,4,15]]}
[null,"Employment History (Pls Continue After Your Last Sailing Experience On Main Application Form )"]
[null,"Company","Name of Vessel","From\n(dd-mmm-yyyy)",null,"To\n(dd-mmm-yyyy)",null,"Total MM-DD",null,"Voyage Type (Foreign Going / Coastal)","Rank","Type of Vessel\n\nPlease complete all fields"]
[null,null,null,null,null,null,null,null,null,null,null,"Vessel Type","GRT","BHP","UMS","Main Engine"]
[null,null,null,null,null,null,null,{"$f":"IF(OR(F4=\"\", D4=\"\"), \"\", ROUNDDOWN(12*(F4-D4)/365.242199,0)&\" - \"&ROUND((12*(F4-D4)/365.242199-ROUNDDOWN(12*(F4-D4)/365.242199,0))*(365.242199/12),0))","v":""}]
[]
[null,null,null,null,null,null,null,{"$f":"IF(OR(F6=\"\", D6=\"\"), \"\", ROUNDDOWN(12*(F6-D6)/365.242199,0)&\" - \"&ROUND((12*(F6-D6)/365.242199-ROUNDDOWN(12*(F6-D6)/365.242199,0))*(365.242199/12),0))","v":""}]
[]
[null,null,null,null,null,null,null,{"$f":"IF(OR(F8=\"\", D8=\"\"), \"\", ROUNDDOWN(12*(F8-D8)/365.242199,0)&\" - \"&ROUND((12*(F8-D8)/365.242199-ROUNDDOWN(12*(F8-D8)/365.242199,0))*(365.242199/12),0))","v":""}]
[]
[null,null,null,null,null,null,null,{"$f":"IF(OR(F10=\"\", D10=\"\"), \"\", ROUNDDOWN(12*(F10-D10)/365.242199,0)&\" - \"&ROUND((12*(F10-D10)/365.242199-ROUNDDOWN(12*(F10-D10)/365.242199,0))*(365.242199/12),0))","v":""}]
[]
[null,null,null,null,null,null,null,{"$f":"IF(OR(F12=\"\", D12=\"\"), \"\", ROUNDDOWN(12*(F12-D12)/365.242199,0)&\" - \"&ROUND((12*(F12-D12)/365.242199-ROUNDDOWN(12*(F12-D12)/365.242199,0))*(365.242199/12),0))","v":""}]
[]
[null,null,null,null,null,null,null,{"$f":"IF(OR(F14=\"\", D14=\"\"), \"\", ROUNDDOWN(12*(F14-D14)/365.242199,0)&\" - \"&ROUND((12*(F14-D14)/365.242199-ROUNDDOWN(12*(F14-D14)/365.242199,0))*(365.242199/12),0))","v":""}]
[]
[null,null,null,null,null,null,null,{"$f":"IF(OR(F16=\"\", D16=\"\"), \"\", ROUNDDOWN(12*(F16-D16)/365.242199,0)&\" - \"&ROUND((12*(F16-D16)/365.242199-ROUNDDOWN(12*(F16-D16)/365.242199,0))*(365.242199/12),0))","v":""}]
[]
[null,null,null,null,null,null,null,{"$f":"IF(OR(F18=\"\", D18=\"\"), \"\", ROUNDDOWN(12*(F18-D18)/365.242199,0)&\" - \"&ROUND((12*(F18-D18)/365.242199-ROUNDDOWN(12*(F18-D18)/365.242199,0))*(365.242199/12),0))","v":""}]
[]
[null,null,null,null,null,null,null,{"$f":"IF(OR(F20=\"\", D20=\"\"), \"\", ROUNDDOWN(12*(F20-D20)/365.242199,0)&\" - \"&ROUND((12*(F20-D20)/365.242199-ROUNDDOWN(12*(F20-D20)/365.242199,0))*(365.242199/12),0))","v":""}]
[]
[null,null,null,null,null,null,null,{"$f":"IF(OR(F22=\"\", D22=\"\"), \"\", ROUNDDOWN(12*(F22-D22)/365.242199,0)&\" - \"&ROUND((12*(F22-D22)/365.242199-ROUNDDOWN(12*(F22-D22)/365.242199,0))*(365.242199/12),0))","v":""}]
[]
[null,null,null,null,null,null,null,{"$f":"IF(OR(F24=\"\", D24=\"\"), \"\", ROUNDDOWN(12*(F24-D24)/365.242199,0)&\" - \"&ROUND((12*(F24-D24)/365.242199-ROUNDDOWN(12*(F24-D24)/365.242199,0))*(365.242199/12),0))","v":""}]
[]
[null,null,null,null,null,null,null,{"$f":"IF(OR(F26=\"\", D26=\"\"), \"\", ROUNDDOWN(12*(F26-D26)/365.242199,0)&\" - \"&ROUND((12*(F26-D26)/365.242199-ROUNDDOWN(12*(F26-D26)/365.242199,0))*(365.242199/12),0))","v":""}]
[]
[null,null,null,null,null,null,null,{"$f":"IF(OR(F28=\"\", D28=\"\"), \"\", ROUNDDOWN(12*(F28-D28)/365.242199,0)&\" - \"&ROUND((12*(F28-D28)/365.242199-ROUNDDOWN(12*(F28-D28)/365.242199,0))*(365.242199/12),0))","v":""}]
[]
[null,null,null,null,null,null,null,{"$f":"IF(OR(F30=\"\", D30=\"\"), \"\", ROUNDDOWN(12*(F30-D30)/365.242199,0)&\" - \"&ROUND((12*(F30-D30)/365.242199-ROUNDDOWN(12*(F30-D30)/365.242199,0))*(365.242199/12),0))","v":""}]
[]
[null,null,null,null,null,null,null,{"$f":"IF(OR(F32=\"\", D32=\"\"), \"\", ROUNDDOWN(12*(F32-D32)/365.242199,0)&\" - \"&ROUND((12*(F32-D32)/365.242199-ROUNDDOWN(12*(F32-D32)/365.242199,0))*(365.242199/12),0))","v":""}]
[]
[null,null,null,null,null,null,null,{"$f":"IF(OR(F34=\"\", D34=\"\"), \"\", ROUNDDOWN(12*(F34-D34)/365.242199,0)&\" - \"&ROUND((12*(F34-D34)/365.242199-ROUNDDOWN(12*(F34-D34)/365.242199,0))*(365.242199/12),0))","v":""}]
[]
[null,null,null,null,null,null,null,{"$f":"IF(OR(F36=\"\", D36=\"\"), \"\", ROUNDDOWN(12*(F36-D36)/365.242199,0)&\" - \"&ROUND((12*(F36-D36)/365.242199-ROUNDDOWN(12*(F36-D36)/365.242199,0))*(365.242199/12),0))","v":""}]
[]
[null,null,null,null,null,null,null,{"$f":"IF(OR(F38=\"\", D38=\"\"), \"\", ROUNDDOWN(12*(F38-D38)/365.242199,0)&\" - \"&ROUND((12*(F38-D38)/365.242199-ROUNDDOWN(12*(F38-D38)/365.242199,0))*(365.242199/12),0))","v":""}]
[]
[null,null,null,null,null,null,null,{"$f":"IF(OR(F40=\"\", D40=\"\"), \"\", ROUNDDOWN(12*(F40-D40)/365.242199,0)&\" - \"&ROUND((12*(F40-D40)/365.242199-ROUNDDOWN(12*(F40-D40)/365.242199,0))*(365.242199/12),0))","v":""}]
[]
[null,null,null,null,null,null,null,{"$f":"IF(OR(F42=\"\", D42=\"\"), \"\", ROUNDDOWN(12*(F42-D42)/365.242199,0)&\" - \"&ROUND((12*(F42-D42)/365.242199-ROUNDDOWN(12*(F42-D42)/365.242199,0))*(365.242199/12),0))","v":""}]
[]
[null,null,null,null,null,null,null,{"$f":"IF(OR(F44=\"\", D44=\"\"), \"\", ROUNDDOWN(12*(F44-D44)/365.242199,0)&\" - \"&ROUND((12*(F44-D44)/365.242199-ROUNDDOWN(12*(F44-D44)/365.242199,0))*(365.242199/12),0))","v":""}]
[]
[null,null,null,null,null,null,null,{"$f":"IF(OR(F46=\"\", D46=\"\"), \"\", ROUNDDOWN(12*(F46-D46)/365.242199,0)&\" - \"&ROUND((12*(F46-D46)/365.242199-ROUNDDOWN(12*(F46-D46)/365.242199,0))*(365.242199/12),0))","v":""}]

{"sheet":"Data","index":2,"n_rows":258,"n_cols":27,"rows_kept":258,"cut":false,"hidden":true,"merged":[]}
["Yes","Master",17,"X","Deck","Crude Oil Tanker","Foreign Going","Male","Dangerous Cargo Endorsement",null,null,null,"Country for Interview","Country","City Column","Email Column"]
["No","Add. Master",18,null,"Engine","Product Tanker","Coastal","Female","1 - Operational",null,null,null,"Bangladesh","Bangladesh",null,"recruitment@maersktankers.com",null,null,null,"Single",null,"AFGHAN                             ",null,null,"Master",null,"Tanker familiarization-Oil/Gas/Chem"]
[null,"Chief Officer",19,null,null,"Chemical Tanker",null,null,"2 - Management",null,null,null,"China","China",null,"recruitment@maersktankers.com",null,null,null,"Married",null,"ALBANIAN                            ",null,null,"Mate 1st Class",null,"Tanker Specialized Chem."]
[null,"Add. Chief Officer",20,null,null,"Prod/Chem",null,null,null,null,null,null,"India","India",null,"recruitment@maersktankers.com",null,null,null,"Divorced",null,"ALGERIAN                           ",null,null,"Mate 2nd Class (OOW)",null,"Tanker Specialized Gas"]
[null,"Second Officer",21,null,null,"LPG",null,null,null,null,null,null,"Myanmar","Myanmar",null,"recruitment@maersktankers.com",null,null,null,"Widower",null,"AMERICAN                           ",null,null,"Chief Engineer Officer",null,"Tanker Specialized Oil"]
[null,"Add. Second Officer",22,null,null,"LNG",null,null,null,null,null,null,"Phillipines","Phillipines",null,"recruitment@maersktankers.com",null,null,null,null,null,"ANDORRIAN                          ",null,null,"Engineer 1st Class",null,"----"]
[null,"Third Officer",23,null,null,"Container",null,null,null,null,null,null,"Singapore","Singapore",null,"recruitment@maersktankers.com",null,null,null,null,null,"ANGOLAN                            ",null,null,"Watchkeeping Engineer",null,"Elementary First Aid"]
[null,"Add. Third Officer",24,null,null,"Car-Carrier",null,null,null,null,null,null,"Sri Lanka","Sri - Lanka",null,"recruitment@maersktankers.com",null,null,null,null,null,"ANGUILLA                           ",null,null,"Ratings forming part of eng. watch",null,"Medical First Aid"]
[null,"Chief Engineer",25,null,null,"Bulk Carrier",null,null,null,null,null,null,"Thailand","Thailand",null,"recruitment@maersktankers.com",null,null,null,null,null,"ANTARCTIC                          ",null,null,"Ratings forming part of nav. watch",null,"In charge of medical care"]
[null,"Add. Chief Engineer",26,null,null,"General Cargo",null,null,null,null,null,null,"Latvia","Latvia",null,"recruitment@maersktankers.com",null,null,null,null,null,"ANTIGUA                            ",null,null,"Ships Cook",null,"----"]
[null,"Second Engineer",27,null,null,"Ro-Ro",null,null,null,null,null,null,"Denmark","Denmark",null,"recruitment@maersktankers.com",null,null,null,null,null,"ARGENTINIAN                        ",null,null,null,null,"Fire Prevention and Fire Fighting"]
[null,"Add. Second Engineer",28,null,null,"OBO",null,null,null,null,null,null,"Australlia","Australlia",null,"recruitment@maersktankers.com",null,null,null,null,null,"ARMENIAN                           ",null,null,null,null,"Advanced fire fighting"]
[null,"Third Engineer",29,null,null,"Reefer",null,null,null,null,null,null,"Poland","Poland",null,"recruitment@maersktankers.com",null,null,null,null,null,"AUSTRALIAN                         ",null,null,null,null,"----"]
[null,"Add. Third Engineer",30,null,null,"Passenger",null,null,null,null,null,null,"Croatia","Croatia",null,"recruitment@maersktankers.com",null,null,null,null,null,"AUSTRIAN                           ",null,null,null,null,"Basic Safety Training"]
[null,"Fourth Engineer",31,null,null,"Offshore",null,null,null,null,null,null,"Russia","Russia",null,"recruitment@maersktankers.com",null,null,null,null,null,"AZERBAIJAN                         ",null,null,null,null,"PersonalSafety, SocialResponsibility"]
[null,"Add. Fourth Engineer",32,null,null,"Other",null,null,null,null,null,null,"Ukraine","Ukraine",null,"recruitment@maersktankers.com",null,null,null,null,null,"BAHAMAS                          ",null,null,null,null,"Personal Survival Techniques"]
[null,"Fifth Engineer",33,null,null,null,null,null,"OIL Tanker",null,null,null,"Romania","Romania",null,"recruitment@maersktankers.com",null,null,null,null,null,"BANGLADESHI                        ",null,null,null,null,"Proficiency in survival craft & frb"]
[null,"Electrical Engineer",34,null,null,null,null,null,"Chemical Tanker",null,null,null,"United Kingdom","United Kingdom",null,"recruitment@maersktankers.com",null,null,null,null,null,"BARBADOS                           ",null,null,null,null,"Certificate of Proficiency as Ship Security Officer"]
[null,"Gas Engineer",35,null,null,null,null,null,"Prod/Chem",null,null,null,"Other","Other",null,"recruitment@maersktankers.com",null,null,null,null,null,"BELARUS                            "]
[null,"Electrical Training Officer",36,null,null,null,null,null,"LPG",null,null,null,null,null,null,null,null,null,null,null,null,"BELGIAN                            ",null,null,null,null,"----"]
[null,"Ablebodied Seaman",37,null,null,null,null,null,"LNG",null,null,null,null,null,null,null,null,null,null,null,null,"BELIZEIN                           ",null,null,null,null,"Radar Observer Course"]
[null,"Chief Cook",38,null,null,null,null,null,"Container",null,null,null,null,null,null,null,null,null,null,null,null,"BENINESE                           ",null,null,null,null,"Bridge Team Management "]
[null,"Second Cook",39,null,null,null,null,null,"Car-Carrier",null,null,null,null,null,null,null,null,null,null,null,null,"BERMUDAN                           ",null,null,null,null,"ECDIS"]
[null,"Deck Cadet",40,null,null,null,null,null,"Bulk Carrier",null,null,null,null,null,null,null,null,null,null,null,null,"BHUTAN                             ",null,null,null,null,"----"]
[null,"Engine Cadet",41,null,null,null,null,null,"Other",null,null,null,null,null,null,null,null,null,null,null,null,"BOLIVIAN                           ",null,null,null,null,"Crew resource management"]
[null,"Foreman",42,null,null,null,null,null,null,null,null,null,null,null,null,null,null,null,null,null,null,"BORNEAN                            ",null,null,null,null,"Liquid Cargo Handling Simulator"]
[null,"Motorman",43,null,null,null,null,null,null,null,null,null,null,null,null,null,null,null,null,null,null,"BOSNIAN                            ",null,null,null,null,"Sulzer RT flex Main Engine Course"]
[null,"Ordinary Seaman",44,null,null,null,null,null,null,null,null,null,null,null,null,null,null,null,null,null,null,"BOTSWANIAN                         ",null,null,null,null,"Man B & W  Main Engine Course"]
[null,"Painter",45,null,null,null,null,null,null,null,null,null,null,null,null,null,null,null,null,null,null,"BRAZILIAN                          "]
[null,"Repair Engineer",46,null,null,null,null,null,null,null,null,null,null,null,null,null,null,null,null,null,null,"BRITISH                            "]
[null,"Repairman",47,null,null,null,null,null,"UMS",null,null,null,null,null,null,null,null,null,null,null,null,"BRUNEI                         "]
[null,"Superintendent",48,null,null,null,null,null,"Manned",null,null,null,null,null,null,null,null,null,null,null,null,"BULGARIAN                          "]
[null,"Supervisor",49,null,null,null,null,null,null,null,null,null,null,null,null,null,null,null,null,null,null,"BURKINA FASO                       "]
[null,"Relative",50,null,null,null,null,null,null,null,null,null,null,null,null,null,null,null,null,null,null,"BURMESE                            "]
[null,"Other",51,null,null,null,null,null,null,null,null,null,null,null,null,null,null,null,null,null,null,"BURUNDI                            "]
[null,null,52,null,null,null,null,null,null,null,null,null,null,null,null,null,null,null,null,null,null,"CALEDONIAN                         "]
[null,null,52,null,null,null,null,null,null,null,null,null,null,null,null,null,null,null,null,null,null,"CAMEROON                           "]
[null,null,53,null,null,null,null,null,null,null,null,null,null,null,null,null,null,null,null,null,null,"CANADIAN                           "]
[null,null,54,null,null,null,null,null,null,null,null,null,null,null,null,null,null,null,null,null,null,"CAPE VERDE                         "]
[null,null,55,null,null,null,"US Visa - C1",null,null,null,null,null,null,null,null,null,null,null,null,null,null,"CAYMAN ISLANDS                     "]
[null,null,56,null,null,null,"US Visa - D",null,null,null,null,null,null,null,null,null,null,null,null,null,null,"CENTRAL AFRICAN                    "]
[null,null,57,null,null,null,"Singapore Visa",null,null,null,null,null,null,null,null,null,null,null,null,null,null,"CHAD                               "]
[null,null,58,null,null,null,"schengen visa ",null,null,null,null,null,null,null,null,null,null,null,null,null,null,"CHILEAN                            "]
[null,null,59,null,null,null,null,null,null,null,null,null,null,null,null,null,null,null,null,null,null,"CHINESE                            "]
[null,null,60,null,null,null,null,null,null,null,null,null,null,null,null,null,null,null,null,null,null,"CHRISTMAS ISLAND                   "]
[null,null,61,null,null,null,null,null,null,null,null,null,null,null,null,null,null,null,null,null,null,"COCOS ISLANDER                     "]
[null,"Master",62,null,null,null,null,null,null,null,null,null,null,null,null,null,null,null,null,null,null,"COLOMBIAN                          "]
[null,"Chief Officer",63,null,null,null,null,null,null,null,null,null,null,null,null,null,null,null,null,null,null,"CONGOLESE                          "]
[null,"Second Officer",64,null,null,null,null,null,null,null,null,null,null,null,null,null,null,null,null,null,null,"COOK ISLAND                        "]
[null,"Third Officer",65,null,null,null,null,null,null,null,null,null,null,null,null,null,null,null,null,null,null,"COSTA RICAN                        "]
[null,"Chief Engineer",66,null,null,null,null,null,null,null,null,null,null,null,null,null,null,null,null,null,null,"CROATIAN                           "]
[null,"Second Engineer",67,null,null,null,null,null,null,null,null,null,null,null,null,null,null,null,null,null,null,"CUBAN                              "]
[null,"Third Engineer",68,null,null,null,null,null,null,null,null,null,null,null,null,null,null,null,null,null,null,"CYPRUN                             "]
[null,"Fourth Engineer",69,null,null,null,null,null,null,null,null,null,null,null,null,null,null,null,null,null,null,"CZECH"]
[null,"Electrical Engineer",70,null,null,null,null,null,null,null,null,null,null,null,null,null,null,null,null,null,null,"DANISH                             "]
[null,"Gas Engineer",71,null,null,null,null,null,null,null,null,null,null,null,null,null,null,null,null,null,null,"DJIBOUTIAN                         "]
[null,"Electrical Training Officer",72,null,null,null,null,null,null,null,null,null,null,null,null,null,null,null,null,null,null,"DOMINICAN                          "]
[null,"Ablebodied Seaman",73,null,null,null,null,null,null,null,null,null,null,null,null,null,null,null,null,null,null,"DUTCH                              "]
[null,"Chief Cook",74,null,null,null,null,null,null,null,null,null,null,null,null,null,null,null,null,null,null,"EAST TIMOR                         "]
[null,"Second Cook",75,null,null,null,null,null,null,null,null,null,null,null,null,null,null,null,null,null,null,"EGYPTIAN                           "]
[null,"Deck Cadet",76,null,null,null,null,null,null,null,null,null,null,null,null,null,null,null,null,null,null,"EL SALVADOR                        "]
[null,"Engine Cadet",77,null,null,null,null,null,null,null,null,null,null,null,null,null,null,null,null,null,null,"EQUADORIAN                         "]
[null,"Foreman",78,null,null,null,null,null,null,null,null,null,null,null,null,null,null,null,null,null,null,"EQUATORIAL GUINEA                  "]
[null,"Motorman",79,null,null,null,null,null,null,null,null,null,null,null,null,null,null,null,null,null,null,"ERITREA                            "]
[null,"Ordinary Seaman",80,null,null,null,null,null,null,null,null,null,null,null,null,null,null,null,null,null,null,"ESTONIAN                           "]
[null,"Painter",81,null,null,null,null,null,null,null,null,null,null,null,null,null,null,null,null,null,null,"ETHIOPIAN                          "]
[null,"Repair Engineer",82,null,null,null,null,null,null,null,null,null,null,null,null,null,null,null,null,null,null,"FIJI                               "]
[null,"Repairman",83,null,null,null,null,null,null,null,null,null,null,null,null,null,null,null,null,null,null,"FILIPINO                           "]
[null,"Superintendent",84,null,null,null,null,null,null,null,null,null,null,null,null,null,null,null,null,null,null,"FINNISH                            "]
[null,"Other",85,null,null,null,null,null,null,null,null,null,null,null,null,null,null,null,null,null,null,"FRENCH                             "]
[null,null,86,null,null,null,null,null,null,null,null,null,null,null,null,null,null,null,null,null,null,"GABONESE                           "]
[null,null,87,null,null,null,null,null,null,null,null,null,null,null,null,null,null,null,null,null,null,"GAMBIAN                            "]
[null,null,88,null,null,null,null,null,null,null,null,null,null,null,null,null,null,null,null,null,null,"GEORGIAN                           "]
[null,null,89,null,null,null,null,null,null,null,null,null,null,null,null,null,null,null,null,null,null,"GERMAN                             "]
[null,null,90,null,null,null,null,null,null,null,null,null,null,null,null,null,null,null,null,null,null,"GHANANIAN                          "]
[null,null,91,null,null,null,null,null,null,null,null,null,null,null,null,null,null,null,null,null,null,"GREEK                              "]
[null,null,92,null,null,null,null,null,null,null,null,null,null,null,null,null,null,null,null,null,null,"GRENADA                            "]
[null,null,93,null,null,null,null,null,null,null,null,null,null,null,null,null,null,null,null,null,null,"GUADELOUPE                         "]
[null,null,94,null,null,null,null,null,null,null,null,null,null,null,null,null,null,null,null,null,null,"GUAM                               "]
[null,null,95,null,null,null,null,null,null,null,null,null,null,null,null,null,null,null,null,null,null,"GUATAMALAN                         "]
[null,null,96,null,null,null,null,null,null,null,null,null,null,null,null,null,null,null,null,null,null,"GUINEA BISSAU                      "]
[null,null,97,null,null,null,null,null,null,null,null,null,null,null,null,null,null,null,null,null,null,"GUINEAN                            "]
[null,null,null,null,null,null,null,null,null,null,null,null,null,null,null,null,null,null,null,null,null,"GUYANAN                            "]
[null,null,null,null,null,null,null,null,null,null,null,null,null,null,null,null,null,null,null,null,null,"HAITIAN                            "]
[null,null,null,null,null,null,null,null,null,null,null,null,null,null,null,null,null,null,null,null,null,"HONDURAN                           "]
[null,null,null,null,null,null,null,null,null,null,null,null,null,null,null,null,null,null,null,null,null,"HUNGARIAN                          "]
[null,null,null,null,null,null,null,null,null,null,null,null,null,null,null,null,null,null,null,null,null,"ICELAND                            "]
[null,null,null,null,null,null,null,null,null,null,null,null,null,null,null,null,null,null,null,null,null,"INDIAN                             "]
[null,null,null,null,null,null,null,null,null,null,null,null,null,null,null,null,null,null,null,null,null,"INDONESIAN                         "]
[null,null,null,null,null,null,null,null,null,null,null,null,null,null,null,null,null,null,null,null,null,"IRANIAN                            "]
[null,null,null,null,null,null,null,null,null,null,null,null,null,null,null,null,null,null,null,null,null,"IRAQI                              "]
[null,null,null,null,null,null,null,null,null,null,null,null,null,null,null,null,null,null,null,null,null,"IRISH                              "]
[null,null,null,null,null,null,null,null,null,null,null,null,null,null,null,null,null,null,null,null,null,"ISRAELI                            "]
[null,null,null,null,null,null,null,null,null,null,null,null,null,null,null,null,null,null,null,null,null,"ITALIAN                            "]
[null,null,null,null,null,null,null,null,null,null,null,null,null,null,null,null,null,null,null,null,null,"IVORY COAST                        "]
[null,null,null,null,null,null,null,null,null,null,null,null,null,null,null,null,null,null,null,null,null,"JAMAICAN                           "]
[null,null,null,null,null,null,null,null,null,null,null,null,null,null,null,null,null,null,null,null,null,"JAPANESE                           "]
[null,null,null,null,null,null,null,null,null,null,null,null,null,null,null,null,null,null,null,null,null,"JORDANESE                          "]
[null,null,null,null,null,null,null,null,null,null,null,null,null,null,null,null,null,null,null,null,null,"KAZAKHSTAN                         "]
[null,null,null,null,null,null,null,null,null,null,null,null,null,null,null,null,null,null,null,null,null,"KENYAN                             "]
[null,null,null,null,null,null,null,null,null,null,null,null,null,null,null,null,null,null,null,null,null,"KIRIBATI                           "]
[null,null,null,null,null,null,null,null,null,null,null,null,null,null,null,null,null,null,null,null,null,"KUWAIT                             "]
[null,null,null,null,null,null,null,null,null,null,null,null,null,null,null,null,null,null,null,null,null,"KYRGYZSTAN                         "]
[null,null,null,null,null,null,null,null,null,null,null,null,null,null,null,null,null,null,null,null,null,"LAOS                                "]
[null,null,null,null,null,null,null,null,null,null,null,null,null,null,null,null,null,null,null,null,null,"LATVIAN                            "]
[null,null,null,null,null,null,null,null,null,null,null,null,null,null,null,null,null,null,null,null,null,"LEBANESE                           "]
[null,null,null,null,null,null,null,null,null,null,null,null,null,null,null,null,null,null,null,null,null,"LIBERIAN                           "]
[null,null,null,null,null,null,null,null,null,null,null,null,null,null,null,null,null,null,null,null,null,"LIBYA                              "]
[null,null,null,null,null,null,null,null,null,null,null,null,null,null,null,null,null,null,null,null,null,"LIECHTENSTEIN                      "]
[null,null,null,null,null,null,null,null,null,null,null,null,null,null,null,null,null,null,null,null,null,"LITHUANIAN                         "]
[null,null,null,null,null,null,null,null,null,null,null,null,null,null,null,null,null,null,null,null,null,"LUXEMBOURG                         "]
[null,null,null,null,null,null,null,null,null,null,null,null,null,null,null,null,null,null,null,null,null,"MACEDONIAN                         "]
[null,null,null,null,null,null,null,null,null,null,null,null,null,null,null,null,null,null,null,null,null,"MADAGASCAR                      "]
[null,null,null,null,null,null,null,null,null,null,null,null,null,null,null,null,null,null,null,null,null,"MALAWIAN                           "]
[null,null,null,null,null,null,null,null,null,null,null,null,null,null,null,null,null,null,null,null,null,"MALAYSIAN                          "]
[null,null,null,null,null,null,null,null,null,null,null,null,null,null,null,null,null,null,null,null,null,"MALDIVE                            "]
[null,null,null,null,null,null,null,null,null,null,null,null,null,null,null,null,null,null,null,null,null,"MALINESE                           "]
[null,null,null,null,null,null,null,null,null,null,null,null,null,null,null,null,null,null,null,null,null,"MALTESE                            "]
[null,null,null,null,null,null,null,null,null,null,null,null,null,null,null,null,null,null,null,null,null,"MARSHALL ISLANDS                   "]
[null,null,null,null,null,null,null,null,null,null,null,null,null,null,null,null,null,null,null,null,null,"MARTINIQUE                         "]
[null,null,null,null,null,null,null,null,null,null,null,null,null,null,null,null,null,null,null,null,null,"MAURITANIAN                        "]
[null,null,null,null,null,null,null,null,null,null,null,null,null,null,null,null,null,null,null,null,null,"MAURITIUS                          "]
[null,null,null,null,null,null,null,null,null,null,null,null,null,null,null,null,null,null,null,null,null,"MEXICAN                            "]
[null,null,null,null,null,null,null,null,null,null,null,null,null,null,null,null,null,null,null,null,null,"MICRONESIAN                        "]
[null,null,null,null,null,null,null,null,null,null,null,null,null,null,null,null,null,null,null,null,null,"MOLDOVA                            "]
[null,null,null,null,null,null,null,null,null,null,null,null,null,null,null,null,null,null,null,null,null,"MONGOLIAN                          "]
[null,null,null,null,null,null,null,null,null,null,null,null,null,null,null,null,null,null,null,null,null,"Montserrat                         "]
[null,null,null,null,null,null,null,null,null,null,null,null,null,null,null,null,null,null,null,null,null,"MOROCCAN                           "]
[null,null,null,null,null,null,null,null,null,null,null,null,null,null,null,null,null,null,null,null,null,"MOZAMBIQUAN                        "]
[null,null,null,null,null,null,null,null,null,null,null,null,null,null,null,null,null,null,null,null,null,"NAMIBIAN                           "]
[null,null,null,null,null,null,null,null,null,null,null,null,null,null,null,null,null,null,null,null,null,"NAURU ISLAND                       "]
[null,null,null,null,null,null,null,null,null,null,null,null,null,null,null,null,null,null,null,null,null,"NEPALESE                           "]
[null,null,null,null,null,null,null,null,null,null,null,null,null,null,null,null,null,null,null,null,null,"NEW ZEALANDER                      "]
[null,null,null,null,null,null,null,null,null,null,null,null,null,null,null,null,null,null,null,null,null,"NICARAGUAN                         "]
[null,null,null,null,null,null,null,null,null,null,null,null,null,null,null,null,null,null,null,null,null,"NIGERIAN                           "]
[null,null,null,null,null,null,null,null,null,null,null,null,null,null,null,null,null,null,null,null,null,"NORFOLK ISLAND                     "]
[null,null,null,null,null,null,null,null,null,null,null,null,null,null,null,null,null,null,null,null,null,"NORTH KOREAN                       "]
[null,null,null,null,null,null,null,null,null,null,null,null,null,null,null,null,null,null,null,null,null,"NORTHERN MARIANA ISLANDS           "]
[null,null,null,null,null,null,null,null,null,null,null,null,null,null,null,null,null,null,null,null,null,"NORWEGIAN                          "]
[null,null,null,null,null,null,null,null,null,null,null,null,null,null,null,null,null,null,null,null,null,"OMANI                              "]
[null,null,null,null,null,null,null,null,null,null,null,null,null,null,null,null,null,null,null,null,null,"PAKISTANI                          "]
[null,null,null,null,null,null,null,null,null,null,null,null,null,null,null,null,null,null,null,null,null,"PALAU                              "]
[null,null,null,null,null,null,null,null,null,null,null,null,null,null,null,null,null,null,null,null,null,"PANAMANIAN                         "]
[null,null,null,null,null,null,null,null,null,null,null,null,null,null,null,null,null,null,null,null,null,"PAPUA NEW GUINEA                  "]
[null,null,null,null,null,null,null,null,null,null,null,null,null,null,null,null,null,null,null,null,null,"PARAGUAY                           "]
[null,null,null,null,null,null,null,null,null,null,null,null,null,null,null,null,null,null,null,null,null,"PERUVIAN                           "]
[null,null,null,null,null,null,null,null,null,null,null,null,null,null,null,null,null,null,null,null,null,"POLISH                             "]
[null,null,null,null,null,null,null,null,null,null,null,null,null,null,null,null,null,null,null,null,null,"POLYNESIAN                         "]
[null,null,null,null,null,null,null,null,null,null,null,null,null,null,null,null,null,null,null,null,null,"PORTUGESE                          "]
[null,null,null,null,null,null,null,null,null,null,null,null,null,null,null,null,null,null,null,null,null,"PUERTO RICAN                       "]
[null,null,null,null,null,null,null,null,null,null,null,null,null,null,null,null,null,null,null,null,null,"QATARI                             "]
[null,null,null,null,null,null,null,null,null,null,null,null,null,null,null,null,null,null,null,null,null,"ROMANIAN                           "]
[null,null,null,null,null,null,null,null,null,null,null,null,null,null,null,null,null,null,null,null,null,"RUSSIAN                            "]
[null,null,null,null,null,null,null,null,null,null,null,null,null,null,null,null,null,null,null,null,null,"RWANDA                             "]
[null,null,null,null,null,null,null,null,null,null,null,null,null,null,null,null,null,null,null,null,null,"SAINT HELENA                       "]
[null,null,null,null,null,null,null,null,null,null,null,null,null,null,null,null,null,null,null,null,null,"SAINT KITTS                        "]
[null,null,null,null,null,null,null,null,null,null,null,null,null,null,null,null,null,null,null,null,null,"SAINT LUCIA                        "]
[null,null,null,null,null,null,null,null,null,null,null,null,null,null,null,null,null,null,null,null,null,"SAINT VINCENT & THE GRENADINES     "]
[null,null,null,null,null,null,null,null,null,null,null,null,null,null,null,null,null,null,null,null,null,"SAMOAN                             "]
[null,null,null,null,null,null,null,null,null,null,null,null,null,null,null,null,null,null,null,null,null,"SAN MARINO                         "]
[null,null,null,null,null,null,null,null,null,null,null,null,null,null,null,null,null,null,null,null,null,"SAO TOME - PRINCIPE                "]
[null,null,null,null,null,null,null,null,null,null,null,null,null,null,null,null,null,null,null,null,null,"SARAWAK                            "]
[null,null,null,null,null,null,null,null,null,null,null,null,null,null,null,null,null,null,null,null,null,"SAUDI ARABIAN                      "]
[null,null,null,null,null,null,null,null,null,null,null,null,null,null,null,null,null,null,null,null,null,"SCOTTISH                           "]
[null,null,null,null,null,null,null,null,null,null,null,null,null,null,null,null,null,null,null,null,null,"SENEGALESE                         "]
[null,null,null,null,null,null,null,null,null,null,null,null,null,null,null,null,null,null,null,null,null,"SEYCHELLES                         "]
[null,null,null,null,null,null,null,null,null,null,null,null,null,null,null,null,null,null,null,null,null,"SIERRA LEONE                       "]
[null,null,null,null,null,null,null,null,null,null,null,null,null,null,null,null,null,null,null,null,null,"SINGAPOREAN                        "]
[null,null,null,null,null,null,null,null,null,null,null,null,null,null,null,null,null,null,null,null,null,"SLOVAKIAN                          "]
[null,null,null,null,null,null,null,null,null,null,null,null,null,null,null,null,null,null,null,null,null,"SLOVENIAN                          "]
[null,null,null,null,null,null,null,null,null,null,null,null,null,null,null,null,null,null,null,null,null,"SOLOMON ISLANDS                    "]
[null,null,null,null,null,null,null,null,null,null,null,null,null,null,null,null,null,null,null,null,null,"SOMALIAN                             "]
[null,null,null,null,null,null,null,null,null,null,null,null,null,null,null,null,null,null,null,null,null,"SOUTH AFRICAN                      "]
[null,null,null,null,null,null,null,null,null,null,null,null,null,null,null,null,null,null,null,null,null,"SOUTH GEORGIA AND THE SOUTH sandwic"]
[null,null,null,null,null,null,null,null,null,null,null,null,null,null,null,null,null,null,null,null,null,"SOUTH KOREAN                       "]
[null,null,null,null,null,null,null,null,null,null,null,null,null,null,null,null,null,null,null,null,null,"SPANISH                            "]
[null,null,null,null,null,null,null,null,null,null,null,null,null,null,null,null,null,null,null,null,null,"SRI LANKAN                         "]
[null,null,null,null,null,null,null,null,null,null,null,null,null,null,null,null,null,null,null,null,null,"ST. PIERRE AND MIQUELON            "]
[null,null,null,null,null,null,null,null,null,null,null,null,null,null,null,null,null,null,null,null,null,"SUDANESE                           "]
[null,null,null,null,null,null,null,null,null,null,null,null,null,null,null,null,null,null,null,null,null,"SURINAMESE                         "]
[null,null,null,null,null,null,null,null,null,null,null,null,null,null,null,null,null,null,null,null,null,"SWAZILAND                          "]
[null,null,null,null,null,null,null,null,null,null,null,null,null,null,null,null,null,null,null,null,null,"SWEDISH                            "]
[null,null,null,null,null,null,null,null,null,null,null,null,null,null,null,null,null,null,null,null,null,"SWISS                              "]
[null,null,null,null,null,null,null,null,null,null,null,null,null,null,null,null,null,null,null,null,null,"SYRIAN                             "]
[null,null,null,null,null,null,null,null,null,null,null,null,null,null,null,null,null,null,null,null,null,"TAIWANESE                          "]
[null,null,null,null,null,null,null,null,null,null,null,null,null,null,null,null,null,null,null,null,null,"TAJIKISTAN                         "]
[null,null,null,null,null,null,null,null,null,null,null,null,null,null,null,null,null,null,null,null,null,"TANZANIAN                          "]
[null,null,null,null,null,null,null,null,null,null,null,null,null,null,null,null,null,null,null,null,null,"THAI                               "]
[null,null,null,null,null,null,null,null,null,null,null,null,null,null,null,null,null,null,null,null,null,"TOGO                               "]
[null,null,null,null,null,null,null,null,null,null,null,null,null,null,null,null,null,null,null,null,null,"TOKELAU                            "]
[null,null,null,null,null,null,null,null,null,null,null,null,null,null,null,null,null,null,null,null,null,"TONGALESE                          "]
[null,null,null,null,null,null,null,null,null,null,null,null,null,null,null,null,null,null,null,null,null,"TRINIDAD & TOBAGO                  "]
[null,null,null,null,null,null,null,null,null,null,null,null,null,null,null,null,null,null,null,null,null,"TUNISIAN                           "]
[null,null,null,null,null,null,null,null,null,null,null,null,null,null,null,null,null,null,null,null,null,"TURKISH                            "]
[null,null,null,null,null,null,null,null,null,null,null,null,null,null,null,null,null,null,null,null,null,"TURKMENISTAN                       "]
[null,null,null,null,null,null,null,null,null,null,null,null,null,null,null,null,null,null,null,null,null,"TURKS AND CAICOS ISLANDS           "]
[null,null,null,null,null,null,null,null,null,null,null,null,null,null,null,null,null,null,null,null,null,"TUVALU                             "]
[null,null,null,null,null,null,null,null,null,null,null,null,null,null,null,null,null,null,null,null,null,"UGANDA                             "]
[null,null,null,null,null,null,null,null,null,null,null,null,null,null,null,null,null,null,null,null,null,"UKRAINIAN                          "]
[null,null,null,null,null,null,null,null,null,null,null,null,null,null,null,null,null,null,null,null,null,"URUGUAN                            "]
[null,null,null,null,null,null,null,null,null,null,null,null,null,null,null,null,null,null,null,null,null,"UZBEKISTAN                         "]
[null,null,null,null,null,null,null,null,null,null,null,null,null,null,null,null,null,null,null,null,null,"VANUATU (NEW HEBRIDES)             "]
[null,null,null,null,null,null,null,null,null,null,null,null,null,null,null,null,null,null,null,null,null,"VATICAN CITY                       "]
[null,null,null,null,null,null,null,null,null,null,null,null,null,null,null,null,null,null,null,null,null,"VENEZUELAN                         "]
[null,null,null,null,null,null,null,null,null,null,null,null,null,null,null,null,null,null,null,null,null,"VIETNAMESE                         "]
[null,null,null,null,null,null,null,null,null,null,null,null,null,null,null,null,null,null,null,null,null,"VIRGIN ISLANDS BRITISH             "]
[null,null,null,null,null,null,null,null,null,null,null,null,null,null,null,null,null,null,null,null,null,"VIRGIN ISLANDS USA                 "]
[null,null,null,null,null,null,null,null,null,null,null,null,null,null,null,null,null,null,null,null,null,"WESTERN SAMOA                      "]
[null,null,null,null,null,null,null,null,null,null,null,null,null,null,null,null,null,null,null,null,null,"YEMENESE                           "]
[null,null,null,null,null,null,null,null,null,null,null,null,null,null,null,null,null,null,null,null,null,"YUGOSLAV                           "]
[null,null,null,null,null,null,null,null,null,null,null,null,null,null,null,null,null,null,null,null,null,"ZAIRIAN                            "]
[null,null,null,null,null,null,null,null,null,null,null,null,null,null,null,null,null,null,null,null,null,"ZAMBIAN                            "]
[null,null,null,null,null,null,null,null,null,null,null,null,null,null,null,null,null,null,null,null,null,"ZANZIBAR                           "]
[null,null,null,null,null,null,null,null,null,null,null,null,null,null,null,null,null,null,null,null,null,"ZIMBABWE                           "]
[null,null,null,null,null,null,null,null,null,null,null,null,null,null,null,null,null,null,null,null,null,"OTHERS"]
[]
[]
[]
[]
[]
[]
[]
[]
[]
[]
[]
[]
[]
[]
[]
[]
[]
[]
[]
[]
[]
[]
[]
[]
[]
[]
[]
[]
[]
[]
[]
[]
[]
[]
[]
[]
[]
[]
[]
[]
[]
[]
[null,null,null,null,null,null,null,null,null,null,null,null,null,null,null,null,null,null,null,null,null,"                                   "]